[Event "4NCL Div 1 2024-25"]
[Site "England"]
[Date "2025.02.15"]
[Round "5.25"]
[White "Lagarde, Maxime"]
[Black "Waldhausen Gordon, Frederick"]
[Result "1-0"]
[Annotator "TA"]
[ECO "C88"]
[WhiteElo "2604"]
[BlackElo "2361"]
[PlyCount "81"]
[EventDate "2024.11.23"]
[EventType "team-tourn"]
[EventCountry "ENG"]
[SourceTitle "playchess.com"]
[Source "ChessBase"]
[SourceQuality "1"]
[TimeControl "40/6000+30:3000+30"]

{[%evp 20,81,30,23,10,22,14,10,12,7,18,10,18,28,42,52,49,39,18,18,33,22,20,18,25,45,35,28,37,51,49,52,39,32,32,42,44,36,112,83,92,75,146,132,128,141,177,182,190,184,177,159,314,325,514,496,793,790,1023,1011,964,952,947,937]} 1. e4 {[%emt 0:10:03]} e5 {[%emt 0:10:09]} 2. Nf3 {[%emt 0:00:03]} Nc6 {[%emt 0:00:04]} 3. Bb5 {[%emt 0:00:03]} a6 {[%emt 0:00:06]} 4. Ba4 {[%emt 0:00:04]} Nf6 {[%emt 0:00:05]} 5. O-O {[%emt 0:00:04]} Be7 {[%emt 0:00:08]} 6. Re1 {[%emt 0:00:13]} b5 {[%emt 0:00:04]} 7. Bb3 {[%emt 0:00:03]} O-O {[%emt 0:00:05]} 8. a4 {[%emt 0:00:02]} Bb7 {[%emt 0:00:11]} 9. d3 {[%emt 0:00:06]} d6 {[%emt 0:00:10]} 10. Nbd2 {[%emt 0:00:12][%cal Bb1d2,Bd2c4,Bc4e3,Be3d5][%mdl 32]} Nd7 {[%emt 0:00:14]} 11. c3 {[%emt 0:01:52]} Nc5 {[%emt 0:00:10] C88: Closed Ruy Lopez: Anti-Marshall Systems.} 12. Bc2 {[%emt 0:00:14]} Nxa4 {[%emt 0:00:49]} 13. Bxa4 {[%emt 0:01:48] White sacrificed a pawn} bxa4 {[%emt 0:00:21] The position is equal.} 14. Nc4 {[%emt 0:05:32]} f5 {[%emt 0:06:38]} 15. Rxa4 {[%emt 0:04:41][%cal Ba1a4,Ba4c4,Bc4c7][%mdl 32] [#]} Bc8 {[%emt 0:09:51][%cal Bb7c8,Bc8e6,Be6d5][%mdl 32]} 16. Ne3 {[%emt 0:07:29]} f4 $146 {[%emt 0:07:21]} (16... fxe4 17. dxe4 Kh8 18. b4 Qe8 19. Nd2 Bh4 20. Re2 Ne7 21. Ndf1 Ng6 22. Ng3 Nf4 {0-1 Sjugirov,S (2661)-Nihal,S (2620) FIDE World Cup 2021 (2.2)}) 17. Nd5 {[%emt 0:04:32]} Bf6 {[%emt 0:03:01]} 18. Rc4 {[%emt 0:06:40]} Na5 {[%emt 0:05:53]} 19. Rxc7 {[%emt 0:12:15] [#]} (19. Nxf6+ {simplifies} Qxf6 20. Ra4 Nc6 21. h3) 19... Be6 {[%emt 0:03:40]} 20. Qa4 {[%emt 0:00:26]} Bxd5 {[%emt 0:03:08]} 21. Qxa5 {[%emt 0:00:04]} Bf7 {[%emt 0:02:49]} 22. b4 {[%emt 0:06:28]} Qe8 {[%emt 0:06:15]} 23. Qb6 $1 $36 {[%emt 0:01:44][%mdl 2048] White has good play.} Bd8 {[%emt 0:00:46] and ...Qe6 would now be decisive} 24. Qxd6 {[%emt 0:00:22]} Bxc7 {[%emt 0:00:04]} 25. Qxc7 {[%emt 0:00:04]} Rc8 {[%emt 0:02:03]} 26. Qxe5 {[%emt 0:01:03]} (26. Qa5 {is more complex.} Rxc3 27. Nxe5 Bb3 28. d4) 26... Qxe5 {[%emt 0:00:14]} 27. Nxe5 {[%emt 0:00:04]} Rxc3 {[%emt 0:00:04]} 28. Bxf4 {[%emt 0:01:13]} Re8 {[%emt 0:02:13]} ({Black should play} 28... Rb3 $14) 29. f3 {[%emt 0:02:57]} Rb3 {[%emt 0:02:39]} 30. Ra1 {[%emt 0:03:10]} Rxb4 {[%emt 0:03:55]} (30... Re6 $142) 31. Rxa6 $16 {[%emt 0:02:31]} g5 {[%emt 0:03:58]} 32. Bg3 {[%emt 0:02:06]} ({Stronger than} 32. Bxg5 Rxe5 33. h4 Re6 $17) 32... Rb2 {[%emt 0:04:02]} 33. Ng4 {[%emt 0:09:06]} Rc8 {[%emt 0:08:03] ( -> ...Rc1+)} 34. h4 {[%emt 0:00:53]} gxh4 {[%emt 0:05:08]} 35. Bxh4 {[%emt 0:06:44]} ({But not} 35. Nh6+ $6 Kf8 36. Be5 (36. Bxh4 Rcc2 $14) 36... Rb1+ 37. Kh2 Bg6 $16) 35... Rd2 $2 {[%emt 0:02:29]} (35... Ra2 $16) 36. Ra7 $18 {[%emt 0:03:50] and Nh6+ would now be decisive} Bg6 {[%emt 0:02:55]} (36... Rc6 $142 37. Ne5 Be8) 37. Bg5 {[%emt 0:00:44] White is clearly winning.} Rd1+ {[%emt 0:01:36]} (37... Rdc2 $142 38. Nf6+ Kh8) 38. Kh2 {[%emt 0:00:11] White threatens Nf6+ and mate.} Rc6 {[%emt 0:00:37]} 39. Ra8+ {[%emt 0:00:30]} Kg7 {[%emt 0:00:16]} 40. Bh6+ {[%emt 0:00:05]} Kf7 {[%emt 0:00:06]} 41. Ne5+ {[%emt 0:50:05] Weighted Error Value: White=0.04 (flawless) /Black=0.43  Mistake:       	---       	Black=5      OK:         	White=9     	Black=10     Best:        	White=3     	Black=3      Strong:       	White=1     	---} 1-0

[Event "4NCL Div 1 2024-25"]
[Site "England"]
[Date "2025.02.15"]
[Round "5.26"]
[White "Gourlay, Iain"]
[Black "Fodor, Tamas Jr."]
[Result "1/2-1/2"]
[Annotator "TA"]
[ECO "A27"]
[WhiteElo "2303"]
[BlackElo "2509"]
[PlyCount "92"]
[EventDate "2024.11.23"]
[EventType "team-tourn"]
[EventCountry "ENG"]
[SourceTitle "playchess.com"]
[Source "ChessBase"]
[SourceQuality "1"]
[TimeControl "40/6000+30:3000+30"]

{[%evp 18,92,30,30,40,47,58,54,125,76,81,55,82,24,96,74,75,0,0,-14,14,0,0,-76,-70,-70,-82,-80,-34,-22,-22,-23,-29,-33,0,-17,-8,-8,-10,-10,-8,-24,-24,-24,-24,-24,-24,-24,-24,-24,-24,-29,-30,-30,-31,-31,-24,-24,0,-1,0,0,0,0,0,0,0,0,0,0,0,0,0,0,0,0,0]} 1. c4 {[%emt 0:19:01]} e5 {[%emt 0:11:28]} 2. g3 {[%emt 0:00:18]} g6 {[%emt 0:02:12]} 3. d4 {[%emt 0:09:22]} Nc6 {[%emt 0:02:08]} 4. Nf3 {[%emt 0:14:46]} exd4 {[%emt 0:07:52]} 5. Nxd4 {[%emt 0:00:15]} Bg7 {[%emt 0:04:11]} 6. Nxc6 {[%emt 0:02:24]} bxc6 {[%emt 0:00:06]} 7. Bg2 {[%emt 0:02:07]} Ne7 {[%emt 0:03:25]} 8. Nc3 {[%emt 0:02:00]} O-O {[%emt 0:02:07]} 9. O-O {[%emt 0:04:39]} Rb8 {[%emt 0:00:05] seems to push 9...d6 aside.} 10. Qc2 {[%emt 0:04:29]} Nf5 {[%emt 0:06:55] A27: English Opening: Three Knights Variation.} 11. e3 {[%emt 0:03:38] Wards off Nd4} h5 $146 {[%emt 0:07:20]} (11... Ba6 12. b3 d5 13. Rd1 Qf6 14. Bb2 dxc4 15. Na4 Qe7 16. Bxg7 Nxg7 17. Bxc6 cxb3 18. axb3 {1-0 Kovacevic,A (2598)-Marinkovic,S (2418) MNT CupT Tivat 2011 (4)}) 12. b3 {[%emt 0:03:31]} d5 {[%emt 0:01:52]} (12... Bb7 $14) 13. cxd5 {[%emt 0:16:11]} (13. Ba3) 13... cxd5 $16 {[%emt 0:00:54][%cal Bc6d5,Bd5d4][%mdl 32]} 14. Rd1 {[%emt 0:01:41]} d4 {[%emt 0:03:47][%csl Oa7,Oc7] [#] Black has weak pawns} 15. Bb2 {[%emt 0:02:11]} (15. Ba3 $1 $16) 15... Ba6 {[%emt 0:11:58]} (15... Qe8 $1 $11 {remains equal.} 16. Ne4 dxe3) 16. Nd5 {[%emt 0:10:11]} c6 {[%emt 0:10:02]} 17. Qxc6 {[%emt 0:05:55] White is more active.} ({Better is} 17. Nf4 $16) 17... Bb7 $11 {[%emt 0:01:38]} 18. Qa4 {[%emt 0:00:38]} Rc8 {[%emt 0:09:03]} 19. e4 {[%emt 0:02:01]} Bxd5 {[%emt 0:02:56]} 20. exf5 {[%emt 0:00:40]} (20. exd5 $11 Rc2 21. Ba3) 20... Bxg2 $17 {[%emt 0:02:04]} 21. Kxg2 {[%emt 0:00:19]} Qd5+ $1 {[%emt 0:00:39]} (21... gxf5 22. Bxd4 Qd5+ 23. Kg1 $16) 22. Kg1 {[%emt 0:00:07][%cal Rb2d4]} h4 {[%emt 0:00:46]} (22... gxf5 23. Bxd4 Qe4 24. Qxa7 $11) (22... Rfd8 $17 {aiming for ...Rc2.} 23. fxg6 (23. Qxa7 $2 {too greedy.} Rc2 $19) 23... Rc2 (23... fxg6 24. Qa6 $14)) 23. Rxd4 $1 $15 {[%emt 0:01:49]} Bxd4 {[%emt 0:03:26]} 24. Qxd4 {[%emt 0:00:06]} Qxd4 {[%emt 0:00:04]} ({Weaker is} 24... Qxf5 25. Qh8#) 25. Bxd4 {[%emt 0:00:07][%mdl 4096] Endgame KRR-KRB} h3 {[%emt 0:00:28]} 26. fxg6 {[%emt 0:00:53]} Rfd8 {[%emt 0:00:34]} 27. gxf7+ {[%emt 0:02:34]} Kxf7 {[%emt 0:00:05]} 28. Bxa7 {[%emt 0:00:30]} Ra8 {[%emt 0:00:03]} 29. Be3 {[%emt 0:01:01] [#] Threatens to win with Kf1.} (29. Bc5 $5) 29... Rxa2 $1 {[%emt 0:00:05]} 30. Rf1 {[%emt 0:00:43]} (30. Rc1 Rb8) 30... Rb8 {[%emt 0:01:18]} 31. Re1 {[%emt 0:01:04]} Rxb3 {[%emt 0:00:20]} 32. Kf1 {[%emt 0:00:07]} Rbb2 {[%emt 0:03:11][%mdl 1024] Black has compensation.} 33. Rc1 {[%emt 0:00:58]} Ke6 {[%emt 0:01:50]} 34. Rc6+ {[%emt 0:00:37]} Kd5 {[%emt 0:00:20]} (34... Kd7 $5 35. Rc1 $8 Kd6 $11) 35. Rc5+ {[%emt 0:00:13]} Kd6 {[%emt 0:00:30]} 36. Rc1 {[%emt 0:00:11] Repels Ra1} Rb3 {[%emt 0:00:10]} 37. g4 {[%emt 0:00:47]} Rab2 {[%emt 0:02:05]} 38. g5 {[%emt 0:00:18] The position is equal.} Rb1 {[%emt 0:01:37]} 39. Rxb1 {[%emt 0:00:22]} Rxb1+ $11 {[%emt 0:00:04] KR-KB} 40. Ke2 {[%emt 0:00:06]} Ke6 {[%emt 0:03:46]} 41. Kf3 {[%emt 0:51:06]} Rg1 {[%emt 0:50:34]} 42. Bf4 {[%emt 0:00:00]} Kf5 {[%emt 0:00:00]} 43. Be3 {[%emt 0:00:00]} Rg4 {[%emt 0:00:00]} 44. Bd2 {[%emt 0:00:00]} Rg2 {[%emt 0:00:00]} 45. Bf4 {[%emt 0:00:00]} Rg1 {[%emt 0:00:00]} 46. Be3 {[%emt 0:00:00]} Rg2 {[%emt 0:00:00] Weighted Error Value: White=0.14 (very precise) /Black=0.12 (very precise)   Mistake:       	White=4     	Black=3      Inaccurate:     	White=1     	Black=3      OK:         	White=14    	Black=9      Best:        	White=3     	Black=4      Strong:       	White=1     	Black=1      Brilliant:      	---       	Black=1} 1/2-1/2

[Event "4NCL Div 1 2024-25"]
[Site "England"]
[Date "2025.02.15"]
[Round "5.27"]
[White "Kirk, Ezra"]
[Black "Olson, Hamish"]
[Result "1/2-1/2"]
[Annotator "ChessBase"]
[ECO "C77"]
[WhiteElo "2386"]
[BlackElo "2374"]
[PlyCount "89"]
[EventDate "2024.11.23"]
[EventType "team-tourn"]
[EventCountry "ENG"]
[SourceTitle "playchess.com"]
[Source "ChessBase"]
[SourceQuality "1"]
[TimeControl "40/6000+30:3000+30"]

1. e4 {[%emt 0:10:03]} e5 {[%emt 0:10:07]} 2. Nf3 {[%emt 0:00:06]} Nc6 {[%emt 0:00:07]} 3. Bb5 {[%emt 0:00:07]} a6 {[%emt 0:00:07]} 4. Ba4 {[%emt 0:00:06]} Nf6 {[%emt 0:00:09]} 5. Nc3 {[%emt 0:00:11]} d6 {[%emt 0:07:01]} 6. d4 {[%emt 0:07:49]} b5 {[%emt 0:05:20]} 7. dxe5 {[%emt 0:12:25]} dxe5 {[%emt 0:01:58]} 8. Qxd8+ {[%emt 0:00:40]} Nxd8 {[%emt 0:02:19]} 9. Bb3 {[%emt 0:00:08]} Bd6 {[%emt 0:02:11]} 10. Bg5 {[%emt 0:04:51]} c6 {[%emt 0:04:15]} 11. a4 {[%emt 0:06:39]} Rb8 {[%emt 0:12:27]} 12. axb5 {[%emt 0:00:23]} axb5 {[%emt 0:00:09]} 13. O-O {[%emt 0:08:54]} Ne6 {[%emt 0:04:12]} 14. Rfd1 {[%emt 0:02:34]} Bc7 {[%emt 0:03:09]} 15. Bxe6 {[%emt 0:00:44]} Bxe6 {[%emt 0:05:44]} 16. Bxf6 {[%emt 0:00:19]} gxf6 {[%emt 0:00:33]} 17. Nh4 {[%emt 0:00:35]} Rd8 {[%emt 0:16:21]} 18. Nf5 {[%emt 0:04:05]} Rxd1+ {[%emt 0:01:39]} 19. Rxd1 {[%emt 0:00:40]} Rg8 {[%emt 0:05:47]} 20. Ra1 {[%emt 0:10:42]} Kd7 {[%emt 0:02:01]} 21. Rd1+ {[%emt 0:00:57]} Ke8 {[%emt 0:03:57]} 22. Ne2 {[%emt 0:05:23]} Bxf5 {[%emt 0:03:57]} 23. exf5 {[%emt 0:00:05]} Ke7 {[%emt 0:00:34]} 24. Ng3 {[%emt 0:02:05]} Ra8 {[%emt 0:00:53]} 25. Ne4 {[%emt 0:00:27]} Ra2 {[%emt 0:03:36]} 26. Rb1 {[%emt 0:00:45]} Bb6 {[%emt 0:01:11]} 27. Kf1 {[%emt 0:01:52]} Bd4 {[%emt 0:01:44]} 28. c3 {[%emt 0:00:37]} Bb6 {[%emt 0:00:12]} 29. Ke2 {[%emt 0:02:08]} Ra4 {[%emt 0:04:08]} 30. Kd3 {[%emt 0:03:56]} h5 {[%emt 0:00:58]} 31. h4 {[%emt 0:03:46]} Ra8 {[%emt 0:01:35]} 32. f3 {[%emt 0:00:47]} c5 {[%emt 0:00:34]} 33. Kc2 {[%emt 0:06:14]} c4 {[%emt 0:00:15]} 34. Rd1 {[%emt 0:02:34]} b4 {[%emt 0:00:16]} 35. cxb4 {[%emt 0:02:41]} Bd4 {[%emt 0:00:29]} 36. Nc3 {[%emt 0:02:05]} Rb8 {[%emt 0:02:29]} 37. Nd5+ {[%emt 0:03:28]} Kd6 {[%emt 0:00:51]} 38. Nxf6 {[%emt 0:00:39]} Rxb4 {[%emt 0:00:27]} 39. Rb1 {[%emt 0:03:53]} Rb3 {[%emt 0:02:10]} 40. Nxh5 {[%emt 0:02:31]} e4 {[%emt 0:01:29]} 41. fxe4 {[%emt 0:32:12]} Ke5 {[%emt 0:20:27]} 42. f6 {[%emt 0:02:41]} Re3 {[%emt 0:09:06]} 43. Rd1 {[%emt 0:05:12]} Rb3 {[%emt 0:01:12]} 44. Rb1 {[%emt 0:01:13]} Re3 {[%emt 0:01:59]} 45. Rd1 {[%emt 0:05:53]} 1/2-1/2

[Event "4NCL Div 1 2024-25"]
[Site "England"]
[Date "2025.02.15"]
[Round "5.28"]
[White "Berry, Neil"]
[Black "Pert, Richard G"]
[Result "0-1"]
[Annotator "ChessBase"]
[ECO "E11"]
[WhiteElo "2248"]
[BlackElo "2399"]
[PlyCount "80"]
[EventDate "2024.11.23"]
[EventType "team-tourn"]
[EventCountry "ENG"]
[SourceTitle "playchess.com"]
[Source "ChessBase"]
[SourceQuality "1"]
[TimeControl "40/6000+30:3000+30"]

1. d4 {[%emt 0:10:07]} d5 {[%emt 0:10:29]} 2. c4 {[%emt 0:00:26]} e6 {[%emt 0:00:05]} 3. Nf3 {[%emt 0:00:32]} Nf6 {[%emt 0:00:14]} 4. g3 {[%emt 0:00:31]} Bb4+ {[%emt 0:02:00]} 5. Bd2 {[%emt 0:00:28]} Be7 {[%emt 0:00:06]} 6. Bg2 {[%emt 0:00:38]} O-O {[%emt 0:00:13]} 7. O-O {[%emt 0:00:12]} Nbd7 {[%emt 0:00:07]} 8. Bc3 {[%emt 0:03:03]} b6 {[%emt 0:02:16]} 9. cxd5 {[%emt 0:01:26]} exd5 {[%emt 0:00:33]} 10. Bd2 {[%emt 0:01:49]} Bb7 {[%emt 0:04:47]} 11. Nc3 {[%emt 0:00:39]} Re8 {[%emt 0:03:16]} 12. Rc1 {[%emt 0:09:42]} c5 {[%emt 0:16:26]} 13. Bf4 {[%emt 0:04:27]} Nf8 {[%emt 0:02:34]} 14. Qa4 {[%emt 0:27:16]} Ne6 {[%emt 0:14:47]} 15. Rfd1 {[%emt 0:15:16]} Nxf4 {[%emt 0:13:57]} 16. gxf4 {[%emt 0:00:07]} a6 {[%emt 0:00:17]} 17. e3 {[%emt 0:05:54]} c4 {[%emt 0:04:17]} 18. Qc2 {[%emt 0:00:37]} b5 {[%emt 0:01:17]} 19. a3 {[%emt 0:04:41]} Ne4 {[%emt 0:07:11]} 20. Nxe4 {[%emt 0:04:08]} dxe4 {[%emt 0:00:05]} 21. Nd2 {[%emt 0:00:30]} f5 {[%emt 0:00:26]} 22. f3 {[%emt 0:01:17]} exf3 {[%emt 0:00:46]} 23. Nxf3 {[%emt 0:02:06]} Be4 {[%emt 0:00:26]} 24. Qf2 {[%emt 0:00:17]} Rc8 {[%emt 0:05:45]} 25. Ne5 {[%emt 0:02:10]} Bh4 {[%emt 0:00:33]} 26. Qe2 {[%emt 0:02:29]} Qd5 {[%emt 0:00:07]} 27. Kh1 {[%emt 0:01:06]} Bf6 {[%emt 0:02:07]} 28. Rg1 {[%emt 0:04:27]} Re6 {[%emt 0:01:48]} 29. Rce1 {[%emt 0:04:16]} Bxe5 {[%emt 0:00:47]} 30. dxe5 {[%emt 0:00:22]} Rg6 {[%emt 0:00:13]} 31. Ref1 {[%emt 0:02:17]} Rd8 {[%emt 0:02:01]} 32. Bf3 {[%emt 0:01:43]} Bxf3+ {[%emt 0:04:34]} 33. Rxf3 {[%emt 0:00:46]} Qd3 {[%emt 0:01:56]} 34. Rf2 {[%emt 0:00:55]} Qe4+ {[%emt 0:00:44]} 35. Qf3 {[%emt 0:00:19]} Qxf3+ {[%emt 0:00:26]} 36. Rxf3 {[%emt 0:00:02]} Rd2 {[%emt 0:00:07]} 37. Rxg6 {[%emt 0:01:16]} hxg6 {[%emt 0:00:04]} 38. Rg3 {[%emt 0:00:29]} Rxb2 {[%emt 0:04:06]} 39. e4 {[%emt 0:00:30]} fxe4 {[%emt 0:02:33]} 40. Re3 {[%emt 0:00:05]} Kf7 {[%emt 0:00:31]} 0-1

[Event "4NCL Div 1 2024-25"]
[Site "England"]
[Date "2025.02.15"]
[Round "5.29"]
[White "Arkell, Keith C"]
[Black "Shafi, Declan"]
[Result "1/2-1/2"]
[Annotator "ChessBase"]
[ECO "A34"]
[WhiteElo "2359"]
[BlackElo "2181"]
[PlyCount "90"]
[EventDate "2024.11.23"]
[EventType "team-tourn"]
[EventCountry "ENG"]
[SourceTitle "playchess.com"]
[Source "ChessBase"]
[SourceQuality "1"]
[TimeControl "40/6000+30:3000+30"]

1. Nf3 {[%emt 0:10:06]} Nf6 {[%emt 0:10:06]} 2. c4 {[%emt 0:00:05]} c5 {[%emt 0:00:04]} 3. Nc3 {[%emt 0:00:04]} Nc6 {[%emt 0:00:07]} 4. g3 {[%emt 0:00:04]} e6 {[%emt 0:02:58]} 5. Bg2 {[%emt 0:00:05]} d5 {[%emt 0:01:46]} 6. cxd5 {[%emt 0:00:05]} Nxd5 {[%emt 0:00:43]} 7. O-O {[%emt 0:00:18]} Be7 {[%emt 0:01:25]} 8. d3 {[%emt 0:01:07]} O-O {[%emt 0:02:41]} 9. Nxd5 {[%emt 0:02:09]} exd5 {[%emt 0:06:25]} 10. d4 {[%emt 0:00:05]} Bg4 {[%emt 0:12:21]} 11. dxc5 {[%emt 0:01:49]} Bxc5 {[%emt 0:00:39]} 12. Bg5 {[%emt 0:01:19]} Qd7 {[%emt 0:04:24]} 13. Rc1 {[%emt 0:01:13]} b6 {[%emt 0:04:04]} 14. a3 {[%emt 0:00:41]} a5 {[%emt 0:02:08]} 15. Rc2 {[%emt 0:05:41]} Rac8 {[%emt 0:09:11]} 16. Rd2 {[%emt 0:23:53]} d4 {[%emt 0:05:04]} 17. Bf4 {[%emt 0:06:25]} Qe7 {[%emt 0:07:51]} 18. Qa4 {[%emt 0:07:47]} h6 {[%emt 0:06:55]} 19. h4 {[%emt 0:04:00]} Qf6 {[%emt 0:02:31]} 20. Rdd1 {[%emt 0:04:41]} Rfe8 {[%emt 0:00:42]} 21. Rfe1 {[%emt 0:00:32]} Re6 {[%emt 0:04:19]} 22. Qb5 {[%emt 0:07:28]} Rce8 {[%emt 0:01:20]} 23. Bd2 {[%emt 0:04:36]} Qe7 {[%emt 0:06:51]} 24. b4 {[%emt 0:08:58]} axb4 {[%emt 0:00:50]} 25. axb4 {[%emt 0:00:07]} Nxb4 {[%emt 0:02:18]} 26. Nxd4 {[%emt 0:03:35]} Bxd4 {[%emt 0:01:16]} 27. Bxb4 {[%emt 0:01:50]} Qf6 {[%emt 0:00:36]} 28. Bf3 {[%emt 0:07:32]} Bxf3 {[%emt 0:06:13]} 29. exf3 {[%emt 0:00:27]} Rxe1+ {[%emt 0:00:33]} 30. Bxe1 {[%emt 0:00:23]} Re6 {[%emt 0:01:17]} 31. Kg2 {[%emt 0:00:57]} Bc5 {[%emt 0:01:29]} 32. Bb4 {[%emt 0:03:26]} Bxb4 {[%emt 0:03:04]} 33. Qxb4 {[%emt 0:00:02]} Qe7 {[%emt 0:00:59]} 34. Qa4 {[%emt 0:00:39]} Re1 {[%emt 0:02:32]} 35. Qa8+ {[%emt 0:03:07]} Kh7 {[%emt 0:00:14]} 36. Rd4 {[%emt 0:02:02]} Qe2 {[%emt 0:01:07]} 37. Qe4+ {[%emt 0:00:06]} g6 {[%emt 0:00:26]} 38. Qxe2 {[%emt 0:00:08]} Rxe2 {[%emt 0:00:04]} 39. Rd7 {[%emt 0:00:04]} Kg7 {[%emt 0:00:09]} 40. Rb7 {[%emt 0:00:04]} Rb2 {[%emt 0:00:40]} 41. g4 {[%emt 0:50:06]} Kf6 {[%emt 0:50:27]} 42. f4 {[%emt 0:01:23]} h5 {[%emt 0:00:00]} 43. g5+ {[%emt 0:00:00]} Ke6 {[%emt 0:00:00]} 44. Kg3 {[%emt 0:00:00]} Rb3+ {[%emt 0:00:00]} 45. f3 {[%emt 0:00:00]} Rb2 {[%emt 0:00:00]} 1/2-1/2

[Event "4NCL Div 1 2024-25"]
[Site "England"]
[Date "2025.02.15"]
[Round "5.30"]
[White "McKay, Roderick M"]
[Black "Eggleston, David J"]
[Result "1-0"]
[Annotator "ChessBase"]
[ECO "A45"]
[WhiteElo "2177"]
[BlackElo "2339"]
[PlyCount "43"]
[EventDate "2024.11.23"]
[EventType "team-tourn"]
[EventCountry "ENG"]
[SourceTitle "playchess.com"]
[Source "ChessBase"]
[SourceQuality "1"]
[TimeControl "40/6000+30:3000+30"]

1. d4 {[%emt 0:10:08]} Nf6 {[%emt 0:10:17]} 2. Nc3 {[%emt 0:00:20]} e6 {[%emt 0:00:57]} 3. a3 {[%emt 0:01:43]} d5 {[%emt 0:00:12]} 4. Bf4 {[%emt 0:00:25]} Bd6 {[%emt 0:03:11]} 5. Bg3 {[%emt 0:00:28]} O-O {[%emt 0:01:20]} 6. e3 {[%emt 0:00:33]} c5 {[%emt 0:00:18]} 7. Nf3 {[%emt 0:00:21]} Nc6 {[%emt 0:01:51]} 8. dxc5 {[%emt 0:02:07]} Bxc5 {[%emt 0:00:16]} 9. Bd3 {[%emt 0:00:21]} Qe7 {[%emt 0:04:34]} 10. O-O {[%emt 0:00:26]} h6 {[%emt 0:11:12]} 11. e4 {[%emt 0:02:00]} d4 {[%emt 0:08:55]} 12. Na4 {[%emt 0:01:08]} e5 {[%emt 0:01:01]} 13. Nxc5 {[%emt 0:00:36]} Qxc5 {[%emt 0:00:15]} 14. b4 {[%emt 0:00:13]} Qb6 {[%emt 0:05:11]} 15. b5 {[%emt 0:04:09]} Na5 {[%emt 0:02:05]} 16. Bxe5 {[%emt 0:00:48]} Rd8 {[%emt 0:01:04]} 17. Qd2 {[%emt 0:01:31]} Nh7 {[%emt 0:02:24]} 18. Bxd4 {[%emt 0:01:16]} Qc7 {[%emt 0:01:24]} 19. Be5 {[%emt 0:00:54]} Qb6 {[%emt 0:01:11]} 20. Qc3 {[%emt 0:03:53]} Bg4 {[%emt 0:00:40]} 21. Bc7 {[%emt 0:01:39]} Qg6 {[%emt 0:00:55]} 22. Ne5 {[%emt 0:00:55]} 1-0

[Event "4NCL Div 1 2024-25"]
[Site "England"]
[Date "2025.02.15"]
[Round "5.31"]
[White "Pert, Max"]
[Black "Swanson, Stephen"]
[Result "1/2-1/2"]
[Annotator "TA"]
[ECO "B06"]
[WhiteElo "2076"]
[BlackElo "2143"]
[PlyCount "72"]
[EventDate "2024.11.23"]
[EventType "team-tourn"]
[EventCountry "ENG"]
[SourceTitle "playchess.com"]
[Source "ChessBase"]
[SourceQuality "1"]
[TimeControl "40/6000+30:3000+30"]

{[%evp 9,72,27,60,22,55,23,32,24,32,-3,12,13,26,21,22,16,34,-6,-4,0,0,0,0,0,0,-46,-23,-33,-38,-43,0,0,0,-4,-2,0,7,4,10,0,8,0,0,0,0,0,0,0,0,0,4,0,6,0,0,-6,0,-14,-12,-12,-11,-10,-14,-14,-14]} 1. d4 {[%emt 0:10:16]} g6 {[%emt 0:10:21]} 2. e4 {[%emt 0:01:07]} Bg7 {[%emt 0:00:10]} 3. Nc3 {[%emt 0:01:11]} d6 {[%emt 0:00:29]} 4. Nf3 {[%emt 0:01:41]} a6 {[%emt 0:01:11]} 5. Be3 {[%emt 0:01:38]} Nd7 {[%emt 0:02:04]} 6. Bd3 {[%emt 0:04:37] B06: Modern Defence.} c5 {[%emt 0:04:06]} 7. O-O {[%emt 0:03:37]} cxd4 {[%emt 0:04:04]} 8. Nxd4 {[%emt 0:02:00] White is slightly better.} Ngf6 {[%emt 0:00:44]} 9. h3 {[%emt 0:09:34]} O-O {[%emt 0:02:39]} 10. a4 {[%emt 0:05:55]} Ne5 $146 {[%emt 0:14:31]} ({Predecessor:} 10... b6 11. f3 Bb7 12. Qd2 Qc7 13. Bh6 d5 14. Bxg7 Kxg7 15. exd5 Nxd5 16. Nxd5 Bxd5 {1-0 Chen,Y-Blach,N FIDE World Uni Rapid-A 1st 2021 (5)}) 11. f4 {[%emt 0:14:20]} Nxd3 {[%emt 0:01:37]} 12. cxd3 {[%emt 0:01:48]} Nh5 {[%emt 0:09:21][%cal Oh5f4]} 13. Qf3 {[%emt 0:06:35]} e5 {[%emt 0:09:13]} 14. Nde2 {[%emt 0:06:35]} Nxf4 {[%emt 0:03:34]} 15. Nxf4 {[%emt 0:07:47]} exf4 {[%emt 0:00:06]} 16. Qxf4 {[%emt 0:08:12]} Be6 {[%emt 0:02:59]} 17. Qg5 {[%emt 0:06:18]} (17. a5 $11) 17... f5 {[%emt 0:12:25]} 18. Qxd8 {[%emt 0:03:56]} Raxd8 {[%emt 0:01:22]} 19. Rae1 {[%emt 0:01:09]} Bxc3 {[%emt 0:12:21]} 20. bxc3 {[%emt 0:00:06] The position is equal.} fxe4 {[%emt 0:00:04] Opposite bishops and equal position} 21. Rxf8+ {[%emt 0:02:14]} Rxf8 $15 {[%emt 0:04:37][%mdl 4096] Endgame KRB-KRB. Black is a pawn up.} 22. Bh6 {[%emt 0:01:05]} Re8 {[%emt 0:01:57]} 23. Rxe4 {[%emt 0:00:10]} Bd7 {[%emt 0:00:04]} 24. Rd4 {[%emt 0:01:30][%cal Oa4a5]} Bc6 {[%emt 0:00:58]} 25. Rxd6 {[%emt 0:01:08]} Kf7 {[%emt 0:01:03]} 26. Kf2 {[%emt 0:01:34]} Bxa4 {[%emt 0:00:28]} 27. c4 {[%emt 0:01:10]} Re6 {[%emt 0:01:09]} 28. Rd8 {[%emt 0:01:15]} Re8 {[%emt 0:00:20]} 29. Rd4 {[%emt 0:00:48]} Re5 {[%emt 0:03:45]} 30. g4 {[%emt 0:01:40]} Bd1 {[%emt 0:01:28]} 31. Be3 {[%emt 0:00:52]} a5 {[%emt 0:01:23]} 32. Rf4+ {[%emt 0:00:40]} Ke8 {[%emt 0:00:23]} 33. d4 {[%emt 0:00:45]} Re7 {[%emt 0:00:05]} 34. d5 {[%emt 0:00:54]} Rf7 {[%emt 0:00:46]} 35. c5 {[%emt 0:00:36]} Rxf4+ {[%emt 0:00:52]} 36. Bxf4 {[%emt 0:00:05]} Bb3 {[%emt 0:01:53] Weighted Error Value: White=0.11 (very precise) /Black=0.06 (flawless)   Mistake:       	White=1     	---        Inaccurate:     	White=3     	Black=2      OK:         	White=9     	Black=15     Best:        	White=1     	Black=2} 1/2-1/2